Cogmind - Beta 13 --- EXPLORER MODE // 2024.05.17 @ 23:17:06 Player: tcfire Result: Destroyed by B-86 Titan with Matter Neutralizer Performance ------------- Evolutions (5) 2500 Regions Visited (19) 3800 Robots Destroyed (153) 765 Value Destroyed (6096) 6096 Prototype IDs (34) 680 Alien Tech Used (2) 400 Bonus (2142) 2142 TOTAL SCORE: 16383 Bonus ------- High Alert Combat Kills 642 Entered Garrisons 200 Used RIF Installer 1000 Met Data Miner 300 Cogmind --------- Core Integrity 0/1000 Matter 274/300 Energy 100/100 System Corruption 0% Temperature Cool (10) Movement Flying (40) Location -4/Proximity Caves Parts ------- > --- POWER (2) -------- (None) > --- PROPULSION (5) --- Nuclear Pulse Thruster > --- UTILITY (8) ------ (None) > --- WEAPON (3) ------- (None) > --- INVENTORY (5) ---- Heavy Antimatter Reactor Particle Accelerator Phase Gun Matter Neutralizer Fusion Bomb Launcher Peak State ------------ > --- POWER ------------ Improved Deuterium Engine > --- PROPULSION ------- Nuclear Pulse Thruster Field Propulsion Drive Nuclear Pulse Array > --- UTILITY ---------- Power Amplifier Improved Heat Sink Improved Cooling System Microactuators Actuator Array > --- WEAPON ----------- Improved Arc Projector Variable Charge Gun > --- INVENTORY -------- Nuclear Pulse Array Fusion Bomb Launcher Heavy Mace [Rating: 60] Favorites ----------- Power Improved Deuterium Engine Engine Improved Deuterium Engine Power Core Light Nuclear Core Reactor Light Antimatter Reactor Propulsion Advanced Treads Treads Advanced Treads Flight Unit Improved VTOL Module Utility Improved Heat Sink Device Improved Heat Sink Storage Huge Storage Unit Processor Machine Analyzer Protection Hardened Light Armor Plating Weapon Plasma Cannon Energy Gun Heavy EM Shotgun Energy Cannon Plasma Cannon Ballistic Gun Assault Rifle Launcher Mini Grenade Launcher Impact Weapon Heavy Mace Build | -11 -10 -10 -9 -8 -8 -8 -8 -7 -7 -7 -6 -6 -6 -6 -5 -5 -5 -5 -4 ------- Run | Yrd Mat Min Mat Mat Gar Mat Sto Fac Low Dat Pro Fac Was Fac Fac Upp Upp Zhi Pro Slots Evolved 11 | . 1 . 2 2 . . . 2 . . . 2 . . 2 . . . . Power 1 | . . . . . . . . . . . . 1 . . . . . . . Propulsion 3 | . . . . 1 . . . 1 . . . 1 . . . . . . . Utility 6 | . 1 . 1 1 . . . 1 . . . . . . 2 . . . . Weapon 1 | . . . 1 . . . . . . . . . . . . . . . . Parts Attached 131 | 7 3 . 12 6 8 15 19 5 . . 8 4 13 10 11 5 . 5 . Power 15 | 1 1 . 2 1 2 . . 1 . . 1 1 2 2 . . . 1 . Engine 9 | 1 . . 1 . 2 . . 1 . . . 1 1 2 . . . . . Core 3 | . 1 . 1 1 . . . . . . . . . . . . . . . Reactor 3 | . . . . . . . . . . . 1 . 1 . . . . 1 . Propulsion 37 | 2 . . 2 2 4 4 2 1 . . 2 1 5 3 5 2 . 2 . Treads 18 | 2 . . 2 2 4 3 1 1 . . 2 1 . . . . . . . Leg . | . . . . . . . . . . . . . . . . . . . . Wheel . | . . . . . . . . . . . . . . . . . . . . Hover . | . . . . . . . . . . . . . . . . . . . . Flight 19 | . . . . . . 1 1 . . . . . 5 3 5 2 . 2 . Utility 33 | 2 2 . 2 1 . 8 1 1 . . 5 1 4 3 2 . . 1 . Device 20 | . 1 . 1 1 . 3 . 1 . . 2 1 4 3 2 . . 1 . Storage 5 | 1 . . 1 . . 3 . . . . . . . . . . . . . Processor 1 | . . . . . . . . . . . 1 . . . . . . . . Hackware . | . . . . . . . . . . . . . . . . . . . . Protection 7 | 1 1 . . . . 2 1 . . . 2 . . . . . . . . Artifact . | . . . . . . . . . . . . . . . . . . . . Weapon 46 | 2 . . 6 2 2 3 16 2 . . . 1 2 2 4 3 . 1 . Energy Gun 12 | . . . 1 . . . 8 . . . . . . . 2 1 . . . Energy Cannon 17 | . . . . 2 2 1 7 2 . . . 1 . 1 . 1 . . . Ballistic Gun 2 | 2 . . . . . . . . . . . . . . . . . . . Ballistic Cannon . | . . . . . . . . . . . . . . . . . . . . Launcher 10 | . . . 5 . . 2 1 . . . . . 1 . . . . 1 . Special Weapon . | . . . . . . . . . . . . . . . . . . . . Impact Weapon 5 | . . . . . . . . . . . . . 1 1 2 1 . . . Slashing Weapon . | . . . . . . . . . . . . . . . . . . . . Piercing Weapon . | . . . . . . . . . . . . . . . . . . . . Special Melee Weapon . | . . . . . . . . . . . . . . . . . . . . Unidentified Prototypes 14 | . . . 1 . . 1 8 . . . . . . . . . . 4 . Corrupted Parts 2 | . . . . . . . . . . . . . 1 1 . . . . . System Corruption 8 | . . . . . . . . . . . . . 3 5 . . . . . Parts Lost 40 | . . . 2 1 5 3 1 . . . 6 1 1 7 2 8 2 . 1 Power 6 | . . . . 1 1 . . . . . . . 1 2 . 1 . . . Propulsion 13 | . . . . . 3 . . . . . 2 . . 2 1 2 2 . 1 Utility 15 | . . . . . 1 1 1 . . . 4 1 . 2 1 4 . . . Weapon 6 | . . . 2 . . 2 . . . . . . . 1 . 1 . . . Highest Loss Streak 8 | . . . 1 1 2 1 1 . . . 3 1 1 7 2 8 2 . 1 To Critical Strikes 2 | . . . . . 1 . . . . . 1 . . . . . . . . Average Slot Usage (%) 88 | . 97 100 93 89 89 98 99 93 100 100 95 96 70 77 50 31 7 11 10 Engine 5 | . 9 . . . 5 8 8 7 7 7 6 6 2 5 5 2 . . . Core 1 | . 2 12 10 6 1 . . . . . . . . . . . . . . Treads 21 | . 25 25 20 25 17 24 24 28 28 28 27 28 6 . . . . . . Flight 1 | . . . . . . . . . . . . . 12 27 18 13 5 8 10 Device 18 | . 9 12 20 21 23 21 16 15 21 21 18 25 30 33 20 10 . . . Storage 7 | . 12 12 10 8 8 10 8 7 7 7 7 6 2 . . . . . . Protection 9 | . 12 12 10 8 8 7 15 14 14 14 10 5 . . . . . . . Energy Gun 1 | . . . 1 . . . 7 11 . . . . . . 1 3 . . . Energy Cannon 12 | . . . . 4 16 18 14 9 21 21 21 18 6 . . 1 2 . . Ballistic Gun 2 | . 25 25 8 . . . . . . . . . . . . . . . . Launcher 3 | . . . 13 14 8 5 2 . . . . . . . . . . . . Naked Turns 113 | . . . . . . . . . . . . . . . . . 73 40 . Heaviest Build 130 | 19 24 24 41 45 46 118 118 128 128 128 128 130 127 36 26 25 10 33 . Greatest Support 113 | 40 40 40 40 69 70 72 64 86 86 86 86 113 113 35 32 33 17 14 14 Greatest Overweight (x) 2 | . . . 1 . 1 1 1 1 1 1 1 1 1 1 1 1 2 2 . Average Overweight (x) . | . . . . . . . 1 1 1 1 1 1 . . . . . . . Largest Inventory Capacity 25 | 10 10 10 15 15 15 25 25 25 25 25 25 25 25 5 5 5 5 5 5 Average Capacity 17 | 8 10 10 11 15 15 18 25 25 25 25 25 25 12 5 5 5 5 5 5 Most Carried 16 | 5 5 6 9 7 13 14 16 13 10 10 16 13 13 5 5 5 5 5 5 Average Carried 9 | . 1 5 6 5 8 11 13 12 10 10 14 11 7 4 3 2 4 3 5 Final Capacity 25 | 10 10 10 15 15 15 25 25 25 25 25 25 25 5 5 5 5 5 5 5 Final Carried 14 | . 5 6 6 7 10 12 14 10 10 10 13 13 5 4 4 4 5 4 5 Class Distribution -------------------- 51% | Hacker-Tank 25% | Hacker-Mutant 10% | Scavenger-Tank 8% | Hacker-Gunner Dominant Class ---------------- Hacker-Mutant | -10/Materials Hacker-Mutant | -10/Mines Hacker-Mutant | -9/Materials Hacker-Mutant | -8/Materials Hacker-Tank | -8/Garrison Hacker-Gunner | -8/Materials Hacker-Tank | -8/Storage Hacker-Tank | -7/Factory Hacker-Tank | -7/Lower Caves Hacker-Tank | -7/Data Miner Hacker-Tank | -6/Proximity Caves Scavenger-Tank | -6/Factory Hacker-Sprinter | -6/Waste Hacker-Sprinter | -6/Factory Hacker-Mutant | -5/Factory Hacker-Mutant | -5/Upper Caves Hacker-Mutant | -5/Upper Caves Hacker-Mutant | -5/Zhirov Hacker-Mutant | -4/Proximity Caves Resources | -11 -10 -10 -9 -8 -8 -8 -8 -7 -7 -7 -6 -6 -6 -6 -5 -5 -5 -5 -4 ----------- Run | Yrd Mat Min Mat Mat Gar Mat Sto Fac Low Dat Pro Fac Was Fac Fac Upp Upp Zhi Pro Matter Collected 2850 | 105 395 57 392 302 435 240 281 71 . . 157 20 15 224 70 47 . . 39 Remotely . | . . . . . . . . . . . . . . . . . . . . Salvage Created 5666 | . 384 . 539 408 588 1217 650 71 . . 883 98 . 524 75 115 114 . . Parts 276 | . 24 . 34 26 26 56 36 3 . . 24 9 . 31 1 5 1 . . Haulers Intercepted 6 | . 2 . . 1 . 1 1 . . . . . . 1 . . . . . Recyclers Shooed 3 | . . . 1 . . . . . . . . 1 . 1 . . . . . Parts Field Recycled . | . . . . . . . . . . . . . . . . . . . . Retrieved Matter . | . . . . . . . . . . . . . . . . . . . . Parts Self-Destructed . | . . . . . . . . . . . . . . . . . . . . Prevented . | . . . . . . . . . . . . . . . . . . . . Kills | -11 -10 -10 -9 -8 -8 -8 -8 -7 -7 -7 -6 -6 -6 -6 -5 -5 -5 -5 -4 ------- Run | Yrd Mat Min Mat Mat Gar Mat Sto Fac Low Dat Pro Fac Was Fac Fac Upp Upp Zhi Pro Combat Hostiles Destroyed 105 | . 7 . 13 11 15 22 11 1 . . 14 2 . 5 1 3 . . . Melee 2 | . . . . . . . . . . . . 1 . 1 . . . . . Guns 16 | . 7 . 5 . . . 3 . . . . . . . . 1 . . . Cannons 42 | . . . . 3 6 13 7 1 . . 10 1 . . . 1 . . . AOE 33 | . . . 8 8 9 4 1 . . . . . . 3 . . . . . Classes Destroyed 15 | . 4 . 5 . . 2 . . . . 2 1 . . . . 1 . . Worker 15 | . . . 4 1 . 1 2 . . . . 1 . 6 . . . . . Builder 14 | . 1 . . 1 . 7 1 . . . . . . 4 . . . . . Tunneler 1 | . . . . . . 1 . . . . . . . . . . . . . Hauler 6 | . 2 . . 1 . 1 1 . . . . . . 1 . . . . . Recycler 3 | . . . 2 . . . . . . . . . . 1 . . . . . Watcher 9 | . 2 . 3 . . 2 . . . . . . . 2 . . . . . Swarmer 8 | . . . 3 . . 2 . . . . 1 . . . . 2 . . . Grunt 52 | . 7 . 4 6 10 12 6 . . . 4 . . 3 . . . . . Brawler 1 | . . . . . . . . . . . 1 . . . . . . . . Duelist 2 | . . . 1 . . 1 . . . . . . . . . . . . . Sentry 31 | . . . 5 5 5 6 4 1 . . 1 . . 2 1 1 . . . Hunter 2 | . . . . . . 1 1 . . . . . . . . . . . . Programmer 2 | . . . . . . . . . . . . 2 . . . . . . . Samaritan 3 | . . . . . . . . . . . . . . . . . 3 . . Thug 1 | . . . . . . . . . . . 1 . . . . . . . . Savage 1 | . . . . . . . . . . . 1 . . . . . . . . Butcher 4 | . . . . . . . . . . . 4 . . . . . . . . Mutant 1 | . . . . . . . . . . . 1 . . . . . . . . Best Kill Streak 16 | . 3 . 5 9 3 8 5 1 . . 4 2 . 16 1 1 . . . Combat Bots Only 7 | . 3 . 3 7 3 5 2 1 . . 4 1 . 4 1 1 . . . Max Kills in Single Turn 5 | . 1 . 2 3 2 4 2 1 . . 1 1 . 5 1 1 1 . . Gunslinging . | . . . . . . . . . . . . . . . . . . . . Exploded 3 | . . . 2 3 2 2 1 . . . . . . 3 . . . . . Melee 1 | . . . . . . . . . . . . 1 . 1 . . . . . Uniques/NPCs Destroyed . | . . . . . . . . . . . . . . . . . . . . Combat | -11 -10 -10 -9 -8 -8 -8 -8 -7 -7 -7 -6 -6 -6 -6 -5 -5 -5 -5 -4 -------- Run | Yrd Mat Min Mat Mat Gar Mat Sto Fac Low Dat Pro Fac Was Fac Fac Upp Upp Zhi Pro Hostile Shots Fired 738 | . 27 . 56 42 49 64 54 63 . . 63 8 1 75 48 90 88 . 10 Missed 243 | . 8 . 15 9 16 22 16 27 . . 19 3 . 29 17 21 39 . 2 Damage Taken 5758 | . 135 . 442 482 505 579 402 161 . . 684 47 39 442 440 650 593 . 157 Core 1512 | . . . 29 58 62 49 43 18 . . 119 . 39 94 117 233 510 . 141 Absorbed by Shields . | . . . . . . . . . . . . . . . . . . . . Redirected to Shielding 102 | . . . . . . 5 31 5 . . 61 . . . . . . . . Ignored by Resistances 3423 | . 90 . 265 285 308 349 241 119 . . 342 29 21 271 260 402 350 . 91 Core Remaining (%) 86 | 100 . 100 92 . . . 61 . . . 80 . . 84 . . . . . Volleys Fired 255 | . 35 2 39 14 27 42 28 3 . . 27 4 . 1 10 10 13 . . Largest 3 | . 2 2 3 3 3 3 3 3 . . 3 3 . 1 1 1 1 . . Hottest 240 | . 40 40 118 150 190 240 240 240 . . 240 240 . 80 75 105 105 . . Shots Fired 567 | . 70 4 72 28 69 110 81 7 . . 80 12 . 1 10 10 13 . . Gun 165 | . 70 4 42 . . . 32 2 . . . . . . 10 5 . . . Cannon 308 | . . . . 10 46 98 38 5 . . 80 12 . 1 . 5 13 . . Launcher 94 | . . . 30 18 23 12 11 . . . . . . . . . . . . Special . | . . . . . . . . . . . . . . . . . . . . Kinetic 115 | . 70 4 41 . . . . . . . . . . . . . . . . Thermal 320 | . . . 1 10 46 98 38 5 . . 80 9 . 1 9 10 13 . . Explosive 94 | . . . 30 18 23 12 11 . . . . . . . . . . . . Electromagnetic 38 | . . . . . . . 32 2 . . . 3 . . 1 . . . . Robot Hit Streak 54 | . 17 . 36 16 24 28 20 15 . . 50 54 . . 8 5 16 . . Robot Miss Streak 3 | . 3 . 2 1 1 3 1 . . . 2 3 . . 1 2 1 . . Penetration Max . | . . . . . . . . . . . . . . . . . . . . Secondary Targets . | . . . . . . . . . . . . . . . . . . . . Shots Hit Robots 387 | . 53 . 56 22 27 78 33 5 . . 59 7 . 12 16 7 12 . . Core Hits 240 | . 23 . 35 29 30 42 28 3 . . 22 2 . 16 5 2 3 . . Critical Kills 6 | . . . 1 . . 2 . . . . 2 . . . . 1 . . . Critical Parts Destroyed 4 | . . . . . . . . . . . . . . 3 1 . . . . Critical Strikes 10 | . . . 1 . . 2 . . . . 2 . . 3 1 1 . . . Meltdown 5 | . . . . . . 2 . . . . 2 . . . . 1 . . . Destroy 1 | . . . 1 . . . . . . . . . . . . . . . . Smash 4 | . . . . . . . . . . . . . . 3 1 . . . . Melee Attacks 21 | . . . . . . . . . . . . . . 13 7 1 . . . Impact 21 | . . . . . . . . . . . . . . 13 7 1 . . . Slashing . | . . . . . . . . . . . . . . . . . . . . Piercing . | . . . . . . . . . . . . . . . . . . . . Sneak Attacks 2 | . . . . . . . . . . . . . . 2 . . . . . Combat Hostiles . | . . . . . . . . . . . . . . . . . . . . Follow-up Attacks . | . . . . . . . . . . . . . . . . . . . . Damage Inflicted 13827 | . 606 . 1742 1326 1150 2774 1092 116 . . 1505 199 . 2179 435 255 448 . . Guns 1618 | . 600 . 383 . . . 331 41 . . . . . . 188 75 . . . Cannons 5415 | . . . . 211 461 1972 404 75 . . 1505 165 . . . 180 442 . . Explosions 5813 | . . . 1359 1115 689 802 332 . . . . . . 1516 . . . . . Melee 910 | . . . . . . . . . . . . . . 663 247 . . . . Ramming 71 | . 6 . . . . . 25 . . . . 34 . . . . 6 . . Kinetic 983 | . 600 . 383 . . . . . . . . . . . . . . . . Thermal 5824 | . . . 106 211 461 1972 466 75 . . 1505 153 . . 178 255 442 . . Explosive 5645 | . . . 1253 1115 689 802 270 . . . . . . 1516 . . . . . Electromagnetic 394 | . . . . . . . 331 41 . . . 12 . . 10 . . . . Impact 910 | . . . . . . . . . . . . . . 663 247 . . . . Slashing . | . . . . . . . . . . . . . . . . . . . . Piercing . | . . . . . . . . . . . . . . . . . . . . Highest Corruption 13 | . 2 2 . . . 1 2 . . . 5 1 8 13 . . . . . Average Corruption 2 | . 1 2 . . . 1 1 . . . 4 1 5 8 . . . . . Corruption Purged . | . . . . . . . . . . . . . . . . . . . . Corruption Blocked . | . . . . . . . . . . . . . . . . . . . . Effects 39 | . 2 2 . . . 3 9 . . . 15 . 2 6 . . . . . Message Errors 6 | . . 2 . . . . 2 . . . 1 . . 1 . . . . . Matter Fused 11 | . 1 . . . . 1 2 . . . 6 . . 1 . . . . . Heat Flow Errors 4 | . . . . . . . 3 . . . 1 . . . . . . . . Energy Discharges 7 | . . . . . . 1 1 . . . 2 . 1 2 . . . . . Parts Rejected 2 | . . . . . . . . . . . . . 1 1 . . . . . Parts Fused 1 | . . . . . . . . . . . . . . 1 . . . . . Data Loss (minor) 7 | . 1 . . . . 1 . . . . 5 . . . . . . . . Data Loss (major) 1 | . . . . . . . 1 . . . . . . . . . . . . Overload Shots . | . . . . . . . . . . . . . . . . . . . . Overflow Damage 680 | . . . 85 4 6 65 3 . . . 16 16 . 381 25 21 58 . . Projectiles 134 | . . . . . . 23 . . . . 16 16 . . . 21 58 . . Explosions 249 | . . . 85 4 6 42 . . . . . . . 112 . . . . . Melee 297 | . . . . . . . 3 . . . . . . 269 25 . . . . Knockbacks 3 | . . . . . . . . . . . . 1 . 2 . . . . . Impact 3 | . . . . . . . . . . . . 1 . 2 . . . . . Kinetic . | . . . . . . . . . . . . . . . . . . . . Secondary . | . . . . . . . . . . . . . . . . . . . . Self-Inflicted Damage 801 | . . . 90 164 209 149 59 . . . . . . 127 . . 3 . . Shots 38 | . . . 5 8 14 6 2 . . . . . . 3 . . . . . Rammed 6 | . 1 . . . . . 1 . . . . 2 . . . . 2 . . Targets Rammed 8 | . 2 . . . . . 1 . . . . 3 . . . . 2 . . Kicked . | . . . . . . . . . . . . . . . . . . . . Crushed 2 | . 1 . . . . . . . . . . 1 . . . . . . . Highest Temperature 615 | . 34 15 47 102 207 475 246 87 . . 615 273 . . . 32 152 . . Average Temperature 88 | . 10 7 24 43 60 108 58 41 . . 184 121 . . . 22 64 . . Received Heat Transfer 2073 | . 126 . 243 243 270 279 216 84 . . 102 . . 132 171 . 180 . 27 Effects 16 | . . . . . . 4 . . . . 12 . . . . . . . . Shutdowns 3 | . . . . . . 1 . . . . 2 . . . . . . . . Energy Bleed 1 | . . . . . . 1 . . . . . . . . . . . . . Interference 10 | . . . . . . 2 . . . . 8 . . . . . . . . Damage (major) 1 | . . . . . . . . . . . 1 . . . . . . . . Damage (core) 1 | . . . . . . . . . . . 1 . . . . . . . . Siege Activations . | . . . . . . . . . . . . . . . . . . . . Robots Corrupted . | . . . . . . . . . . . . . . . . . . . . Combat Hostiles . | . . . . . . . . . . . . . . . . . . . . Parts Fried 8 | . . . . . . . 1 . . . . . . 5 2 . . . . Impact Corruptions 8 | . . . . . . . 1 . . . . . . 6 1 . . . . Robots Melted 10 | . . . . . . 5 . . . . 4 . . . . 1 . . . Combat Hostiles 10 | . . . . . . 5 . . . . 4 . . . . 1 . . . Parts Melted 35 | . . . . . 1 17 1 . . . 15 . . . . 1 . . . Heat Transferred 10209 | . . . 100 333 740 3800 850 150 . . 2950 250 . . 296 296 444 . . Parts Sabotaged . | . . . . . . . . . . . . . . . . . . . . Parts Stolen . | . . . . . . . . . . . . . . . . . . . . Parts Stripped . | . . . . . . . . . . . . . . . . . . . . Power Chain Reactions 1 | . . . . . . . 1 . . . . . . . . . . . . Alert | -11 -10 -10 -9 -8 -8 -8 -8 -7 -7 -7 -6 -6 -6 -6 -5 -5 -5 -5 -4 ------- Run | Yrd Mat Min Mat Mat Gar Mat Sto Fac Low Dat Pro Fac Was Fac Fac Upp Upp Zhi Pro Peak Influence 1196 | . 196 3 437 555 1196 940 613 218 . . . 79 38 458 269 . . . . Initial 427 | . . 3 . 109 274 427 284 163 . . . 24 18 20 164 . . . . Average 410 | . 79 3 243 311 701 675 424 177 . . . 51 15 154 217 . . . . Maximum Alert Level 4 | . . . 2 2 4 3 2 1 . . . . . 2 1 . . . . Low Security (%) 30 | 100 100 100 32 37 . . . 86 . . . 100 100 63 20 . . . . Level 1 23 | . . . 64 23 16 . 57 13 . . . . . 29 79 . . . . Level 2 24 | . . . 2 39 40 41 42 . . . . . . 7 . . . . . Level 3 19 | . . . . . 38 58 . . . . . . . . . . . . . Level 4 1 | . . . . . 4 . . . . . . . . . . . . . . Level 5 . | . . . . . . . . . . . . . . . . . . . . High Security . | . . . . . . . . . . . . . . . . . . . . Max Security . | . . . . . . . . . . . . . . . . . . . . Squads Dispatched 14 | . . . 1 3 . 5 1 . . . . . . 3 . . 1 . . Investigation 3 | . . . . . . 1 . . . . . . . 2 . . . . . Extermination . | . . . . . . . . . . . . . . . . . . . . Reinforcement 6 | . . . 1 1 . 2 1 . . . . . . 1 . . . . . Assault 2 | . . . . . . 1 . . . . . . . . . . 1 . . Garrison 3 | . . . . 2 . 1 . . . . . . . . . . . . . Intercept . | . . . . . . . . . . . . . . . . . . . . Searches Triggered . | . . . . . . . . . . . . . . . . . . . . Construction Impeded 1 | . . . . . . 1 . . . . . . . . . . . . . Haulers Reinforced . | . . . . . . . . . . . . . . . . . . . . Active Scanning Responses . | . . . . . . . . . . . . . . . . . . . . Cargo Convoy Interrupts . | . . . . . . . . . . . . . . . . . . . . Stealth | -11 -10 -10 -9 -8 -8 -8 -8 -7 -7 -7 -6 -6 -6 -6 -5 -5 -5 -5 -4 --------- Run | Yrd Mat Min Mat Mat Gar Mat Sto Fac Low Dat Pro Fac Was Fac Fac Upp Upp Zhi Pro Distress Signals 6 | . 1 . 1 . . 1 1 . . . . 1 . 1 . . . . . Communications Jammed . | . . . . . . . . . . . . . . . . . . . . Distress Signals . | . . . . . . . . . . . . . . . . . . . . Times Spotted 168 | . 11 . 19 13 15 31 13 1 . . 14 3 6 19 5 5 12 . 1 Peak Tracking Total 13 | . 5 . 4 5 3 6 3 1 . . 4 1 6 8 4 4 13 . 1 Tactical Retreats 10 | . . . . 1 . 2 . . . . . . . 4 . . 3 . . Traps | -11 -10 -10 -9 -8 -8 -8 -8 -7 -7 -7 -6 -6 -6 -6 -5 -5 -5 -5 -4 ------- Run | Yrd Mat Min Mat Mat Gar Mat Sto Fac Low Dat Pro Fac Was Fac Fac Upp Upp Zhi Pro Traps Triggered 10 | . 2 . . . 2 2 3 . . . . 1 . . . . . . . Indirectly . | . . . . . . . . . . . . . . . . . . . . Trap Hack Attempts . | . . . . . . . . . . . . . . . . . . . . Triggered . | . . . . . . . . . . . . . . . . . . . . Disarmed . | . . . . . . . . . . . . . . . . . . . . Reprogrammed . | . . . . . . . . . . . . . . . . . . . . Reused . | . . . . . . . . . . . . . . . . . . . . Traps Extracted . | . . . . . . . . . . . . . . . . . . . . Installed . | . . . . . . . . . . . . . . . . . . . . Triggered 1 | . . . . . . . . . 1 . . . . . . . . . . Machines | -11 -10 -10 -9 -8 -8 -8 -8 -7 -7 -7 -6 -6 -6 -6 -5 -5 -5 -5 -4 ---------- Run | Yrd Mat Min Mat Mat Gar Mat Sto Fac Low Dat Pro Fac Was Fac Fac Upp Upp Zhi Pro Machines Disabled 40 | . . . 8 . 5 4 7 . . . . . . 16 . . . . . Max in Single Turn 7 | . . . 3 . 1 1 2 . . . . . . 7 . . . . . Garrison Access 1 | . . . . . . 1 . . . . . . . . . . . . . Garrison Relay 3 | . . . . . 3 . . . . . . . . . . . . . . Machines Repaired . | . . . . . . . . . . . . . . . . . . . . Machines Dismantled . | . . . . . . . . . . . . . . . . . . . . Machines Sabotaged . | . . . . . . . . . . . . . . . . . . . . Overloaded Fab Kills . | . . . . . . . . . . . . . . . . . . . . Hacking | -11 -10 -10 -9 -8 -8 -8 -8 -7 -7 -7 -6 -6 -6 -6 -5 -5 -5 -5 -4 --------- Run | Yrd Mat Min Mat Mat Gar Mat Sto Fac Low Dat Pro Fac Was Fac Fac Upp Upp Zhi Pro Machines Accessed 20 | . . . . 1 1 1 1 1 . 4 . . . 2 . 1 . 8 . Terminals 3 | . . . . . 1 . 1 1 . . . . . . . . . . . Fabricators 2 | . . . . . . . . . . . . . . 2 . . . . . Repair Stations . | . . . . . . . . . . . . . . . . . . . . Recycling Units . | . . . . . . . . . . . . . . . . . . . . Scanalyzers 1 | . . . . . . 1 . . . . . . . . . . . . . Garrison Access 1 | . . . . 1 . . . . . . . . . . . . . . . Total Hacks 94 | . . . . 2 1 6 1 2 . 26 . . . 8 . 1 . 47 . Successful 85 | . . . . 1 1 4 1 1 . 26 . . . 3 . 1 . 47 . Failed 9 | . . . . 1 . 2 . 1 . . . . . 5 . . . . . Catastrophic 1 | . . . . . . . . . . . . . . 1 . . . . . Database Lockouts . | . . . . . . . . . . . . . . . . . . . . Manual 2 | . . . . . . . . . . . . . . . . . . 2 . Terminals 4 | . . . . . 1 . 1 2 . . . . . . . . . . . Fabricators 8 | . . . . . . . . . . . . . . 8 . . . . . Repair Stations . | . . . . . . . . . . . . . . . . . . . . Recycling Units . | . . . . . . . . . . . . . . . . . . . . Scanalyzers 6 | . . . . . . 6 . . . . . . . . . . . . . Garrison Access 2 | . . . . 2 . . . . . . . . . . . . . . . Terminal Hacks 77 | . . . . . 1 . 1 1 . 26 . . . . . 1 . 47 . Record 46 | . . . . . . . . . . 11 . . . . . . . 35 . Part Schematic 13 | . . . . . . . . . . 9 . . . . . . . 4 . Robot Schematic 3 | . . . . . . . . . . 3 . . . . . . . . . Robot Analysis 4 | . . . . . . . . . . . . . . . . . . 4 . Prototype ID Bank 8 | . . . . . . . . 1 . 3 . . . . . . . 4 . Open Door 2 | . . . . . . . 1 . . . . . . . . 1 . . . Security Stations 1 | . . . . . 1 . . . . . . . . . . . . . . Fabricator Hacks 3 | . . . . . . . . . . . . . . 3 . . . . . Load Schematic 2 | . . . . . . . . . . . . . . 2 . . . . . Build 1 | . . . . . . . . . . . . . . 1 . . . . . Repair Station Hacks . | . . . . . . . . . . . . . . . . . . . . Recycling Unit Hacks . | . . . . . . . . . . . . . . . . . . . . Scanalyzer 4 | . . . . . . 4 . . . . . . . . . . . . . Insert Component 2 | . . . . . . 2 . . . . . . . . . . . . . Analyze 2 | . . . . . . 2 . . . . . . . . . . . . . Garrison Access Hacks 1 | . . . . 1 . . . . . . . . . . . . . . . Unlock Access 1 | . . . . 1 . . . . . . . . . . . . . . . Unauthorized Hacks . | . . . . . . . . . . . . . . . . . . . . Terminals . | . . . . . . . . . . . . . . . . . . . . Fabricators . | . . . . . . . . . . . . . . . . . . . . Repair Stations . | . . . . . . . . . . . . . . . . . . . . Recycling Units . | . . . . . . . . . . . . . . . . . . . . Scanalyzers . | . . . . . . . . . . . . . . . . . . . . Garrison Access . | . . . . . . . . . . . . . . . . . . . . Data Cores Recovered . | . . . . . . . . . . . . . . . . . . . . Used . | . . . . . . . . . . . . . . . . . . . . Hacking Detections 6 | . . . . 1 . 1 1 1 . . . . . 2 . . . . . Full Trace Events 3 | . . . . . . 1 . . . . . . . 2 . . . . . Feedback Events . | . . . . . . . . . . . . . . . . . . . . Feedback Blocked . | . . . . . . . . . . . . . . . . . . . . Robot Schematics Acquired 3 | . . . . . . . . . . 3 . . . . . . . . . Robots Built . | . . . . . . . . . . . . . . . . . . . . Authchips . | . . . . . . . . . . . . . . . . . . . . Time . | . . . . . . . . . . . . . . . . . . . . Total Robot Build Rating . | . . . . . . . . . . . . . . . . . . . . Part Schematics Acquired 15 | . . . . . . 2 . . . 9 . . . . . . . 4 . Parts Built 1 | . . . . . . . . . . . . . . 1 . . . . . Authchips . | . . . . . . . . . . . . . . . . . . . . Time 76 | . . . . . . . . . . . . . . 76 . . . . . Total Part Build Rating 5 | . . . . . . . . . . . . . . 5 . . . . . Parts Repaired . | . . . . . . . . . . . . . . . . . . . . Time . | . . . . . . . . . . . . . . . . . . . . Parts Recycled . | . . . . . . . . . . . . . . . . . . . . Recycled Matter . | . . . . . . . . . . . . . . . . . . . . Retrieved Matter . | . . . . . . . . . . . . . . . . . . . . Retrieved Components . | . . . . . . . . . . . . . . . . . . . . Parts Scanalyzed 2 | . . . . . . 2 . . . . . . . . . . . . . Part Schematics Acquired 2 | . . . . . . 2 . . . . . . . . . . . . . Parts Damaged . | . . . . . . . . . . . . . . . . . . . . Bothacking | -11 -10 -10 -9 -8 -8 -8 -8 -7 -7 -7 -6 -6 -6 -6 -5 -5 -5 -5 -4 ------------ Run | Yrd Mat Min Mat Mat Gar Mat Sto Fac Low Dat Pro Fac Was Fac Fac Upp Upp Zhi Pro Used RIF Installer 2 | . . . . . 2 . . . . . . . . . . . . . . Alert ID Control 1 | . . . . . 1 . . . . . . . . . . . . . . Robots Hacked . | . . . . . . . . . . . . . . . . . . . . Non-combat . | . . . . . . . . . . . . . . . . . . . . Combat . | . . . . . . . . . . . . . . . . . . . . Robot Hacks Applied . | . . . . . . . . . . . . . . . . . . . . Relay Couplers Released 18 | . . . . . 15 3 . . . . . . . . . . . . . Machine Destruction 18 | . . . . . 15 3 . . . . . . . . . . . . . Fabnet Peak Effective % . | . . . . . . . . . . . . . . . . . . . . Robots Rewired . | . . . . . . . . . . . . . . . . . . . . Allies Hacked . | . . . . . . . . . . . . . . . . . . . . Hacks Repelled . | . . . . . . . . . . . . . . . . . . . . Allies | -11 -10 -10 -9 -8 -8 -8 -8 -7 -7 -7 -6 -6 -6 -6 -5 -5 -5 -5 -4 -------- Run | Yrd Mat Min Mat Mat Gar Mat Sto Fac Low Dat Pro Fac Was Fac Fac Upp Upp Zhi Pro Total Allies 1 | . . . . . . . . . . . . . . . . . 1 . . Largest Group 1 | . . . . . . . . . . . . . . . . . 1 . . Highest-Rated Group 135 | . . . . . . . . . . . . . . . . . 135 . . Highest-Rated Ally 135 | . . . . . . . . . . . . . . . . . 135 . . Total Orders . | . . . . . . . . . . . . . . . . . . . . Ally Attacks . | . . . . . . . . . . . . . . . . . . . . Total Damage . | . . . . . . . . . . . . . . . . . . . . Kills . | . . . . . . . . . . . . . . . . . . . . Allies Corrupted . | . . . . . . . . . . . . . . . . . . . . Allies Melted . | . . . . . . . . . . . . . . . . . . . . Intel | -11 -10 -10 -9 -8 -8 -8 -8 -7 -7 -7 -6 -6 -6 -6 -5 -5 -5 -5 -4 ------- Run | Yrd Mat Min Mat Mat Gar Mat Sto Fac Low Dat Pro Fac Was Fac Fac Upp Upp Zhi Pro Robot Analysis Total 4 | . . . . . . . . . . . . . . . . . . 4 . Derelict Logs Recovered 7 | . . . . . . . . . 1 . 3 . . . . 1 1 . 1 Drone Launches . | . . . . . . . . . . . . . . . . . . . . Drone Recoveries . | . . . . . . . . . . . . . . . . . . . . Exploration | -11 -10 -10 -9 -8 -8 -8 -8 -7 -7 -7 -6 -6 -6 -6 -5 -5 -5 -5 -4 ------------- Run | Yrd Mat Min Mat Mat Gar Mat Sto Fac Low Dat Pro Fac Was Fac Fac Upp Upp Zhi Pro Turns Passed 7950 | 68 476 255 614 197 1330 911 784 197 211 245 1487 210 84 182 132 190 139 151 87 Spaces Moved 4981 | 59 227 156 287 88 707 437 275 79 92 107 592 78 148 432 207 375 247 192 196 Core 275 | 36 . . . . . . . . . . . . . . . 17 143 79 . Treads 3157 | 23 227 156 287 88 707 437 275 79 92 107 592 78 9 . . . . . . Legs . | . . . . . . . . . . . . . . . . . . . . Wheels . | . . . . . . . . . . . . . . . . . . . . Hover . | . . . . . . . . . . . . . . . . . . . . Flight 1549 | . . . . . . . . . . . . . 139 432 207 358 104 113 196 Fastest Speed 25 | 50 160 160 160 160 150 145 233 231 231 231 231 235 29 25 28 34 34 44 40 Average Speed 136 | 92 160 160 168 160 173 167 233 231 231 231 232 236 41 26 33 37 43 72 43 Slowest Speed 240 | 160 160 160 240 160 240 233 233 231 231 231 237 238 238 103 103 100 195 214 44 Overloaded Moves . | . . . . . . . . . . . . . . . . . . . . Propulsion Burnouts . | . . . . . . . . . . . . . . . . . . . . Robots Hopped 5 | . . . . . . . . . . . . . . . 2 2 1 . . Cave-ins Triggered . | . . . . . . . . . . . . . . . . . . . . Teleports 1 | . . . . . . . . . . . . . . . . . . 1 . Exploration Rate (%) 39 | 4 41 27 37 16 81 52 46 4 18 75 78 4 77 17 8 55 45 62 49 Regions Visited 19 Branch Regions 9 Pre-discovered Areas 7 | . . . . . . . . . 1 1 . . . . . 1 1 3 . Known Exits Taken 15 | 1 1 1 1 1 . 1 1 1 . 1 1 . . 1 1 1 1 1 . Unknown Exits Taken 1 | . . . . . . . . . 1 . . . . . . . . . . Scrap Searched 7 | . . . . . . . . . . . 4 . . . . 1 1 . 1 Spaces Dug 19 | . . . . . . . 19 . . . . . . . . . . . . Terrain Destroyed 707 | . . . 197 99 106 136 134 . . . . . . 33 . 1 1 . . Melee . | . . . . . . . . . . . . . . . . . . . . Projectile 23 | . . . . . 2 10 9 . . . . . . . . 1 1 . . AOE 684 | . . . 197 99 104 126 125 . . . . . . 33 . . . . . Terrain Rammed . | . . . . . . . . . . . . . . . . . . . . Walls Destroyed . | . . . . . . . . . . . . . . . . . . . . Machines Disabled . | . . . . . . . . . . . . . . . . . . . . Actions | -11 -10 -10 -9 -8 -8 -8 -8 -7 -7 -7 -6 -6 -6 -6 -5 -5 -5 -5 -4 --------- Run | Yrd Mat Min Mat Mat Gar Mat Sto Fac Low Dat Pro Fac Was Fac Fac Upp Upp Zhi Pro Total 5619 | 72 276 158 354 117 761 526 355 90 91 106 641 92 176 481 249 410 263 204 197 Wait 54 | . . . . . . 11 10 . . . . . . 15 . 16 2 . . Move 4953 | 58 226 155 286 88 705 436 274 78 91 106 591 78 147 431 202 370 244 191 196 Hop 5 | . . . . . . . . . . . . . . . 2 2 1 . . Pick Up 114 | 7 8 1 10 7 14 13 13 1 . . 11 3 3 6 9 4 . 4 . Fast Attach . | . . . . . . . . . . . . . . . . . . . . Attach 90 | 7 1 . 5 4 4 7 6 4 . . 6 3 13 8 11 4 . 7 . Detach 17 | . . . . . . 2 . . . . 1 . 5 2 2 1 1 2 1 Swap 43 | . 2 . 7 2 4 8 13 1 . . 2 1 . 2 . 1 . . . Drop 59 | . 2 . 7 2 7 7 10 3 . . 3 . 8 3 6 1 . . . Fire 255 | . 35 2 39 14 27 42 28 3 . . 27 4 . 1 10 10 13 . . Melee 21 | . . . . . . . . . . . . . . 13 7 1 . . . Ram 2 | . . . . . . . . . . . . . . . . . 2 . . Kick . | . . . . . . . . . . . . . . . . . . . . Crush 6 | . 2 . . . . . 1 . . . . 3 . . . . . . . Escape Stasis . | . . . . . . . . . . . . . . . . . . . . Rewire . | . . . . . . . . . . . . . . . . . . . . Trap . | . . . . . . . . . . . . . . . . . . . . Miscellaneous . | . . . . . . . . . . . . . . . . . . . . Route ------- -11/Scrapyard -10/Materials -10/Mines -9/Materials (discovered 3 exits: *Mat / *Min x2) -8/Materials (discovered 2 exits: *Sto / Gar) -8/Garrison (discovered 4 exits: *Mat x4) -8/Materials (discovered 2 exits: *Fac / *Sto) -8/Storage -7/Factory -7/Lower Caves -7/Data Miner -6/Proximity Caves -6/Factory -6/Waste -6/Factory -5/Factory -5/Upper Caves -5/Upper Caves -5/Zhirov -4/Proximity Caves (discovered 1 exit: Fac) History --------- Turn | Location | Event 19 | -11/Scrapyard | Identified exit to Materials 19 | -11/Scrapyard | Discovered exit to Materials (range 15) 69 | -11/Scrapyard | Entered Materials 69 | -10/Materials | Evolved 1 slot: Utility x1 312 | -10/Materials | Build established: Hacker-Mutant 330 | -10/Materials | Identified exit to Mines 330 | -10/Materials | Discovered exit to Mines (range 16) 545 | -10/Materials | Entered Mines 554 | -10/Mines | Assembled infested the area 598 | -10/Mines | A weapon hastily lodged in a ceiling crevice suddenly fell to the ground 784 | -10/Mines | Identified exit to Materials 784 | -10/Mines | Discovered exit to Materials (range 10) 800 | -10/Mines | Entered Materials 800 | -9/Materials | Evolved 2 slots: Utility x1, Weapon x1 1014 | -9/Materials | Identified exit to Mines 1014 | -9/Materials | Discovered exit to Mines (range 11) 1132 | -9/Materials | Discovered exit to Mines (range 16) 1390 | -9/Materials | Identified exit to Materials 1390 | -9/Materials | Discovered exit to Materials (range 11) 1414 | -9/Materials | Entered another Materials area 1414 | -8/Materials | Evolved 2 slots: Propulsion x1, Utility x1 1484 | -8/Materials | Garrison activated, responded to threat 1521 | -8/Materials | Destroyed 7 combat bots 1524 | -8/Materials | Identified exit to Storage 1524 | -8/Materials | Discovered exit to Storage (range 12) 1611 | -8/Materials | Identified exit to Garrison 1611 | -8/Materials | Entered Garrison 1611 | -8/Garrison | Warlord forces raided the area 1645 | -8/Garrison | Triggered checkpoint 1645 | -8/Garrison | Triggered checkpoint 1681 | -8/Garrison | Triggered checkpoint 1707 | -8/Garrison | Triggered checkpoint 1762 | -8/Garrison | Identified exit to Materials 1762 | -8/Garrison | Discovered exit to Materials (range 9) 1786 | -8/Garrison | Triggered checkpoint 1809 | -8/Garrison | Triggered checkpoint 1813 | -8/Garrison | Discovered exit to Materials (range 6) 1870 | -8/Garrison | Build established: Hacker-Tank 1917 | -8/Garrison | Triggered checkpoint 1934 | -8/Garrison | Warlord forces retreated 2095 | -8/Garrison | Triggered checkpoint 2117 | -8/Garrison | Garrison Relay disabled 2153 | -8/Garrison | Discovered exit to Materials (range 10) 2207 | -8/Garrison | Installed Relay Interface Framework 2323 | -8/Garrison | Triggered checkpoint 2358 | -8/Garrison | Garrison Relay disabled 2560 | -8/Garrison | Learned Materials security intel 2615 | -8/Garrison | Discovered exit to Materials (range 14) 2826 | -8/Garrison | Garrison Relay disabled 2856 | -8/Garrison | Expanded RIF knowledge: Alert ID Control 2941 | -8/Garrison | Entered Materials 3336 | -8/Materials | Identified exit to Factory 3336 | -8/Materials | Discovered exit to Factory (range 5) 3553 | -8/Materials | Build established: Hacker-Gunner 3697 | -8/Materials | Garrison activated, responded to threat 3791 | -8/Materials | Discovered exit to Storage (range 15) 3852 | -8/Materials | Entered Storage 4185 | -8/Storage | Build established: Hacker-Tank 4609 | -8/Storage | Discovered exit to Factory (range 6) 4636 | -8/Storage | Entered Factory 4636 | -7/Factory | Evolved 2 slots: Propulsion x1, Utility x1 4778 | -7/Factory | Identified exit to Lower Caves 4778 | -7/Factory | Discovered exit to Lower Caves (range 16) 4833 | -7/Factory | Entered Lower Caves 4875 | -7/Lower Caves | Learned location of Zion (-6) 5038 | -7/Lower Caves | A Derelict revealed a hidden shortcut to meet someone special 5044 | -7/Lower Caves | Entered Data Miner 5044 | -7/Data Miner | Identified exit to Proximity Caves 5044 | -7/Data Miner | Discovered exit to Proximity Caves (range 6) 5088 | -7/Data Miner | Met Data Miner 5148 | -7/Data Miner | Learned location of Section 7 (-2) 5148 | -7/Data Miner | Acquired the access code to Warlord's prototype stash 5197 | -7/Data Miner | Received God Mode back door access code from Data Miner 5289 | -7/Data Miner | Entered Proximity Caves 5291 | -6/Proximity Caves | Attracted the attention of an 0b10 checkpoint 5306 | -6/Proximity Caves | Learned Factory garrison access intel 6003 | -6/Proximity Caves | Learned 4 Factory zone layouts 6076 | -6/Proximity Caves | Attacked by a faux Warlord 6079 | -6/Proximity Caves | Lost 3 parts (1n2u) 6406 | -6/Proximity Caves | Build established: Scavenger-Tank 6477 | -6/Proximity Caves | Learned Factory garrison access intel 6746 | -6/Proximity Caves | Identified exit to Factory 6746 | -6/Proximity Caves | Discovered exit to Factory (range 10) 6776 | -6/Proximity Caves | Entered Factory 6776 | -6/Factory | Evolved 2 slots: Power x1, Propulsion x1 6777 | -6/Factory | Identified exit to Factory 6778 | -6/Factory | Loaded intel: 3 garrison access locations 6986 | -6/Factory | Sucked down chute 6986 | -6/Factory | Entered Waste 7001 | -6/Waste | EMP discharged 7001 | -6/Waste | Spotted C-40 Crusher 7018 | -6/Waste | Crushed by Compactor (1 part destroyed, 2 dropped) 7027 | -6/Waste | Spotted C-40 Crusher 7027 | -6/Waste | Spotted C-40 Crusher 7044 | -6/Waste | Found Broken Fusion Bomb Launcher 7055 | -6/Waste | Spotted C-40 Crusher 7062 | -6/Waste | Spotted C-40 Crusher 7065 | -6/Waste | Spotted C-40 Crusher 7065 | -6/Waste | Identified exit to Factory 7065 | -6/Waste | Discovered exit to Factory (range 14) 7070 | -6/Waste | Entered Factory 7071 | -6/Factory | Loaded intel: 3 garrison access locations 7243 | -6/Factory | System corruption reached 10% 7247 | -6/Factory | Fabricated Cld. Cesium-ion Thruster? 7251 | -6/Factory | Discovered exit to Factory (range 5) 7252 | -6/Factory | Entered another Factory area 7252 | -5/Factory | Evolved 2 slots: Utility x2 7266 | -5/Factory | Lost 7 parts (2p2n2u1w) 7349 | -5/Factory | Identified exit to Upper Caves 7349 | -5/Factory | Discovered exit to Upper Caves (range 16) 7384 | -5/Factory | Entered Upper Caves 7387 | -5/Upper Caves | Learned location of Warlord (-4) 7526 | -5/Upper Caves | Lost 8 parts (1p2n4u1w) 7557 | -5/Upper Caves | Attracted the attention of an 0b10 checkpoint 7567 | -5/Upper Caves | Identified exit to Upper Caves 7567 | -5/Upper Caves | Discovered exit to Upper Caves (range 16) 7574 | -5/Upper Caves | Entered another Upper Caves area 7621 | -5/Upper Caves | Attracted the attention of an 0b10 outpost 7628 | -5/Upper Caves | Build established: Hacker-Mutant 7642 | -5/Upper Caves | Core integrity fell below 50% 7664 | -5/Upper Caves | Attracted the attention of an 0b10 checkpoint 7666 | -5/Upper Caves | Learned location of Armory (-3) 7689 | -5/Upper Caves | Core integrity fell below 20% 7704 | -5/Upper Caves | Identified exit to Zhirov 7704 | -5/Upper Caves | Discovered exit to Zhirov (range 16) 7713 | -5/Upper Caves | Entered Zhirov 7713 | -5/Zhirov | Identified exit to Proximity Caves 7713 | -5/Zhirov | Discovered exit to Proximity Caves (range 3) 7736 | -5/Zhirov | Learned location of Quarantine (-2) 7736 | -5/Zhirov | Learned location of Testing (-3) 7736 | -5/Zhirov | Learned location of Command (-1) 7756 | -5/Zhirov | Found Alien Artifact 7757 | -5/Zhirov | Identified Transdimensional Reconstructor 7757 | -5/Zhirov | Warped through subspace 7774 | -5/Zhirov | Found Alien Artifact 7776 | -5/Zhirov | Identified Integrated Reactor 7776 | -5/Zhirov | Installed Integrated Reactor, increased core energy generation (+10) 7864 | -5/Zhirov | Entered Proximity Caves 7908 | -4/Proximity Caves | Identified exit to Factory 7940 | -4/Proximity Caves | Spotted B-86 Titan 7951 | -4/Proximity Caves | Destroyed by B-86 Titan with Matter Neutralizer Last Messages --------------- points to it being one of many associated with the FTL drive, most likely related to energy or heat transfer. Acquired Prototype Device. Identified Particle Accelerator. Acquired Prototype Reactor. Identified Hvy. Antimatter Reactor. LOCATION=PROXIMITY CAVES GOAL=ESCAPE Searching scrap... Found Imp. Hardlight Generator. Found 39 Matter. Acquired 39 matter. Acquired derelict log, extracted data. Knocked back. Penetrated by Slug. Mak. Flight Unit destroyed. Knocked back. Penetrated by Slug. Slug penetrates Wall. [Achievement: Achiever] Map ----- +----------------------------------------------------+ | ?# # ##???????????????????????????????????? | | ?##### # #???????????????????????????????????? | | ?????## ## #???????????????????????????????????? | | ##????##### #???????????????????????????????????? | | #?????## #???????????????????????????????????? | | ##?### #???????????????????????????????????? | | ## ##???????????????????????????????????? | | #????????????????????????????????????? | | ##????????????????????????????????????? | | ##?????????????????????????????????????? | | #????????######???????????????????